bitfinex-derivatives/quotes_BTCF0:USTF0_20250108
["timestamp","ask_amount","ask_price","bid_price","bid_amount"]
[1736325218491,0.35465055,96000.0,95997.0,0.3608]
[1736325218890,0.11210523,95998.0,95997.0,0.412902]
[1736325219801,0.35465055,96000.0,95997.0,0.412902]
[1736325221100,0.35465055,96000.0,95998.0,0.052102]
[1736325222805,0.33222335,96000.0,95998.0,0.519182]
[1736325222996,0.32545334,96000.0,95998.0,0.519182]
[1736325225203,0.28906334,96000.0,95998.0,0.519182]
[1736325226004,0.26117815,96000.0,95998.0,0.519182]
[1736325226901,0.22352815,96000.0,95998.0,0.519182]
[1736325228006,0.18537815,96000.0,95998.0,0.519182]
[1736325228208,0.042534,96000.0,95998.0,0.519182]
[1736325229203,0.0170177,96000.0,95998.0,0.519182]
[1736325233917,0.0170177,96000.0,95998.0,0.522182]
[1736325234214,0.0601,96019.0,95998.0,0.522182]
[1736325234215,0.0601,96019.0,96011.0,0.052095]
[1736325234413,0.0601,96019.0,96012.0,0.052094]
[1736325237617,0.0601,96019.0,96012.0,0.06497968]
[1736325237809,0.0601,96019.0,96014.0,0.052093]
[1736325239410,0.0601,96019.0,96012.0,0.01288568]
[1736325239607,0.0601,96019.0,96018.0,0.052091]
[1736325242016,0.0601,96019.0,96016.0,0.3608]
[1736325242716,0.0601,96019.0,96013.0,0.3608]
[1736325244015,0.3601,96019.0,96010.0,0.01334531]
[1736325244209,0.3608,96011.0,95977.0,0.052113]
[1736325244516,0.3608,96011.0,95970.0,0.00156294]
[1736325244517,0.3608,95983.0,95970.0,0.00156294]
[1736325244912,0.3608,95983.0,95979.0,0.052112]
[1736325245112,0.3608,95983.0,95974.0,0.3608]
[1736325245722,0.3608,95983.0,95976.0,0.052114]
[1736325246510,0.3608,95983.0,95981.0,0.052111]
[1736325246812,0.10449579,96030.0,95982.0,0.3608]
[1736325246813,0.10449579,96000.0,95982.0,0.3608]
[1736325247007,0.10449579,96000.0,95991.0,0.052106]
[1736325247924,0.10449579,96000.0,95983.0,0.17581]
[1736325248114,0.10449579,95993.0,95983.0,0.17581]
[1736325248323,0.10449579,95993.0,95983.0,0.1237]
[1736325248513,0.10449579,95993.0,95984.0,0.052109]
[1736325250119,0.10449579,96000.0,95984.0,0.052109]
[1736325250723,0.10449579,96000.0,95984.0,0.054109]
[1736325251221,0.10449579,96000.0,95985.0,0.052109]
[1736325251425,0.1196,96008.0,95985.0,0.052109]
[1736325253117,0.1196,96008.0,95984.0,0.002]
[1736325253425,0.1196,96008.0,95986.0,0.052108]
[1736325255425,0.1196,96008.0,95986.0,0.054108]
[1736325255628,0.1196,96008.0,95986.0,0.002]
[1736325255827,0.1196,96008.0,95987.0,0.052108]
[1736325256010,0.3608,95997.0,95987.0,0.052108]
[1736325257125,0.3608,95997.0,95987.0,0.054108]
[1736325257516,0.3608,95997.0,95987.0,0.002]
[1736325258323,0.3608,95988.0,95987.0,0.002]
[1736325258918,0.3608,95988.0,95982.0,0.46808]
[1736325259124,0.3608,95988.0,95987.0,0.002]
[1736325259824,0.3608,95988.0,95982.0,0.46808]
[1736325260127,0.3608,95988.0,95982.0,0.467]
[1736325268720,0.052108,95987.0,95982.0,0.467]
[1736325274032,0.3608,95988.0,95981.0,0.01615093]
[1736325274234,0.052112,95980.0,95961.0,0.116922]
[1736325274434,0.3608,95976.0,95961.0,0.116922]
[1736325275023,0.3608,95976.0,95970.0,0.01764251]
[1736325276136,0.052117,95971.0,95970.0,0.01764251]
[1736325276533,0.052117,95971.0,95970.0,0.01964251]
[1736325278230,0.052117,95971.0,95970.0,0.01864251]
[1736325279130,0.052117,95971.0,95970.0,0.01764251]
[1736325279131,0.053117,95971.0,95970.0,0.01764251]
[1736325279638,0.053117,95971.0,95953.0,0.22865791]
[1736325279838,0.3608,95960.0,95953.0,0.28078391]
[1736325280631,0.3608,95960.0,95956.0,0.052125]
[1736325284137,0.3608,95960.0,95954.0,0.052122]
[1736325284337,0.3608,95960.0,95956.0,0.001]
[1736325285442,0.3608,95968.0,95958.0,0.052119]
[1736325285746,0.3608,95968.0,95959.0,0.123]
[1736325286630,0.16649579,95970.0,95959.0,0.123]
[1736325286838,0.16649579,95970.0,95959.0,0.175119]
[1736325287038,0.16649579,95970.0,95960.0,0.052118]
[1736325288246,0.16649579,95970.0,95959.0,0.125]
[1736325288441,0.16649579,95970.0,95962.0,0.052118]
[1736325289855,0.16649579,95970.0,95959.0,0.125]
[1736325290036,0.16649579,95970.0,95963.0,0.052117]
[1736325293467,0.10449579,95970.0,95966.0,0.052116]
[1736325294264,0.052112,95974.0,95966.0,0.052116]
[1736325297465,0.3608,95967.0,95966.0,0.052116]
[1736325297861,0.3608,95967.0,95966.0,0.053116]
[1736325299960,0.3608,95967.0,95966.0,0.001]
[1736325300957,0.3608,95967.0,95962.0,0.01300429]
[1736325301161,0.3608,95967.0,95950.0,0.46816]
[1736325301364,0.412921,95956.0,95950.0,0.46708]
[1736325301561,0.052121,95956.0,95950.0,0.46708]
[1736325302156,0.052121,95956.0,95950.0,0.47998455]
[1736325302362,0.052122,95955.0,95950.0,0.47998455]
[1736325303358,0.10436559,95960.0,95950.0,0.47998455]
[1736325303564,0.3608,95956.0,95950.0,0.47998455]
[1736325303765,0.052124,95952.0,95950.0,0.01390455]
[1736325304970,0.3608,95956.0,95950.0,0.01390455]
[1736325306373,0.3608,95956.0,95951.0,0.052123]
[1736325306679,0.36136001,95967.0,95950.0,0.3608]
[1736325306876,0.3608,95976.0,95959.0,0.3608]
[1736325307080,0.10436559,95980.0,95967.0,0.412915]
[1736325307376,0.10436559,95980.0,95968.0,0.062]
[1736325307772,0.3608,95987.0,95968.0,0.062]
[1736325308073,0.10436559,95980.0,95968.0,0.062]
[1736325308463,0.10436559,95980.0,95971.0,0.052111]
[1736325308666,0.10436559,95980.0,95968.0,0.062]
[1736325308867,0.10436559,95980.0,95973.0,0.052111]
[1736325310172,0.3608,95987.0,95973.0,0.052111]
[1736325310367,0.3608,95987.0,95973.0,0.053111]
[1736325310576,0.3608,95987.0,95975.0,0.05211]
[1736325311471,0.3608,95987.0,95973.0,0.001]
[1736325311675,0.3608,95987.0,95976.0,0.052109]
[1736325311874,0.3608,95987.0,95977.0,0.052108]
[1736325313174,0.3608,95987.0,95979.0,0.052107]
[1736325315186,0.11209602,95991.0,95987.0,0.052103]
[1736325315371,0.11209602,95998.0,95987.0,0.052103]
[1736325315571,0.3608,95988.0,95987.0,0.052103]
[1736325317072,0.3618,95988.0,95987.0,0.052103]
[1736325318576,0.001,95988.0,95987.0,0.052103]
[1736325320087,0.001,95988.0,95987.0,0.06881553]
[1736325324481,0.11209602,96012.0,95999.0,0.052096]
[1736325324680,0.11209602,96012.0,96002.0,0.052095]
[1736325325092,0.11209602,96012.0,96002.0,0.116495]
[1736325325290,0.052088,96016.0,96002.0,0.116495]
[1736325325785,0.052088,96015.0,96002.0,0.116495]
[1736325327086,0.052088,96015.0,96002.0,0.13260082]
[1736325327490,0.052088,96015.0,96003.0,0.052094]
[1736325328490,0.052088,96015.0,96004.0,0.052093]
[1736325329085,0.12,96018.0,96006.0,0.052092]
[1736325329489,0.12,96018.0,96008.0,0.052091]
[1736325330589,0.0604,96018.0,96012.0,0.052089]
[1736325331784,0.5657256,96020.0,96002.0,0.08050582]
[1736325331785,0.46136001,96020.0,96002.0,0.08050582]
[1736325331988,0.4608,96020.0,96017.0,0.052087]
[1736325332384,0.4608,96020.0,96019.0,0.052086]
[1736325332385,0.1,96020.0,96019.0,0.052086]
[1736325334693,0.1,96020.0,96019.0,0.06856983]
[1736325338796,0.1,96020.0,96019.0,0.01648383]
[1736325338985,0.1,96020.0,96012.0,0.052089]
[1736325340090,0.1,96020.0,96012.0,0.053089]
[1736325340590,0.1,96020.0,96012.0,0.01768229]
[1736325340787,0.1,96020.0,96014.0,0.052088]
[1736325342392,0.1,96020.0,96012.0,0.01768229]
[1736325342596,0.1,96020.0,96012.0,0.001]
[1736325343101,0.1,96020.0,96014.0,0.001]
[1736325344001,0.1,96020.0,96017.0,0.052086]
[1736325344201,0.1,96020.0,96018.0,0.0619]
[1736325345000,0.1,96020.0,96012.0,0.001]
[1736325346094,0.1,96020.0,96011.0,0.08123009]
[1736325346793,0.1,96020.0,96011.0,0.01663009]
[1736325346993,0.152085,96020.0,96012.0,0.001]
[1736325348999,0.152085,96020.0,96011.0,0.001]
[1736325349897,0.1,96020.0,96012.0,0.001]
[1736325350601,0.1,96020.0,96010.0,0.48111521]
[1736325350803,0.1,96020.0,96011.0,0.001]
[1736325352510,0.1,96020.0,96012.0,0.001]
[1736325353209,0.1,96020.0,96011.0,0.001]
[1736325353611,0.1,96020.0,96011.0,0.05309]
[1736325353913,0.1,96020.0,96011.0,0.05209]
[1736325354206,0.1,96020.0,96012.0,0.054089]
[1736325355701,0.1,96020.0,96012.0,0.052089]
[1736325356602,0.1,96020.0,96012.0,0.054089]
[1736325356811,0.1,96020.0,96012.0,0.002]
[1736325357009,0.1,96020.0,96013.0,0.052089]
[1736325357300,0.1,96020.0,96012.0,0.002]
[1736325357704,0.1,96020.0,96017.0,0.052086]
[1736325359211,0.1,96020.0,96019.0,0.052086]
[1736325360609,0.21206685,96020.0,96019.0,0.054086]
[1736325364111,0.1,96020.0,96019.0,0.054086]
[1736325365022,0.1,96020.0,96019.0,0.052086]
[1736325365208,0.1,96020.0,96019.0,0.054086]
[1736325366514,0.1,96020.0,96019.0,0.414886]
[1736325366820,0.05386125,96020.0,96019.0,0.414886]
[1736325368420,0.01756769,96020.0,96019.0,0.414886]
[1736325368616,0.1,96040.0,96032.0,0.052078]
[1736325368814,0.1,96040.0,96033.0,0.3608]
[1736325369016,0.1,96040.0,96037.0,0.052075]
[1736325369215,0.1,96040.0,96038.0,0.0559]
[1736325369422,0.1,96040.0,96038.0,0.1719]
[1736325370027,0.02462494,96040.0,96039.0,0.052075]
[1736325370226,0.49810154,96048.0,96047.0,0.05207]
[1736325370618,0.3608,96058.0,96047.0,0.05207]
[1736325371029,0.23677446,96060.0,96047.0,0.05207]
[1736325371222,0.0586,96059.0,96048.0,0.052069]
[1736325371620,0.3608,96052.0,96048.0,0.052069]
[1736325371919,0.3608,96052.0,96039.0,0.052074]
[1736325372136,0.052071,96047.0,96038.0,0.01391254]
[1736325372321,0.3608,96040.0,96028.0,0.0559]
[1736325372526,0.06838723,96038.0,96028.0,0.01427018]
[1736325372721,0.06838723,96038.0,96026.0,0.052082]
[1736325373135,0.06838723,96038.0,96024.0,0.3608]
[1736325373322,0.16414285,96037.0,96024.0,0.3608]
[1736325373528,0.11206685,96037.0,96027.0,0.01569727]
[1736325373727,0.11206685,96037.0,96027.0,0.00156191]
[1736325374125,0.11206685,96037.0,96027.0,0.06246191]
[1736325374526,0.11206685,96036.0,96032.0,0.3608]
[1736325374730,0.11206685,96036.0,96035.0,0.052077]
[1736325375432,0.06519955,96036.0,96035.0,0.052077]
[1736325376539,0.10415454,96050.0,96033.0,0.0602]
[1736325376736,0.10415454,96050.0,96041.0,0.3608]
[1736325377035,0.10415454,96050.0,96044.0,0.052072]
[1736325377223,0.10415454,96050.0,96045.0,0.0556]
[1736325380135,0.052064,96059.0,96045.0,0.107671]
[1736325380837,0.052064,96059.0,96047.0,0.05207]
[1736325381339,0.052064,96059.0,96045.0,0.0556]
[1736325381537,0.052064,96059.0,96048.0,0.05207]
[1736325382036,0.052064,96059.0,96045.0,0.06950387]
[1736325382238,0.052064,96059.0,96049.0,0.052069]
[1736325382540,0.052064,96059.0,96045.0,0.06950387]
[1736325382541,0.052064,96059.0,96051.0,0.052068]
[1736325382924,0.20415454,96060.0,96045.0,0.06950387]
[1736325383130,0.20415454,96060.0,96053.0,0.052067]
[1736325384441,0.25621854,96060.0,96053.0,0.052067]
[1736325385135,0.20415454,96060.0,96046.0,0.052071]
[1736325385331,0.412867,96053.0,96045.0,0.01390387]
[1736325385634,0.0564,96052.0,96041.0,0.3608]
[1736325385841,0.10415454,96051.0,96041.0,0.3608]
[1736325386036,0.16365454,96051.0,96041.0,0.3608]
[1736325386234,0.0562,96050.0,96041.0,0.3608]
[1736325386430,0.052072,96044.0,96041.0,0.37517717]
[1736325387936,0.11203635,96043.0,96041.0,0.01437717]
[1736325388241,0.11203635,96043.0,96032.0,0.412878]
[1736325388631,0.10415454,96042.0,96032.0,0.3608]
[1736325389034,0.3608,96041.0,96032.0,0.01408906]
[1736325389235,0.052078,96034.0,96027.0,0.00156191]
[1736325389435,0.052078,96034.0,96032.0,0.001]
[1736325390240,0.11203635,96033.0,96032.0,0.001]
[1736325390544,0.58923635,96033.0,96032.0,0.001]
[1736325392145,0.4772,96033.0,96032.0,0.001]
[1736325392847,0.4772,96033.0,96027.0,0.01580425]
[1736325394542,0.3608,96033.0,96027.0,0.01580425]
[1736325394739,0.10415454,96042.0,96027.0,0.01580425]
[1736325394949,0.10415454,96040.0,96032.0,0.052078]
[1736325395536,0.10415454,96040.0,96032.0,0.109878]
[1736325396250,0.10415454,96040.0,96032.0,0.110878]
[1736325396544,0.10415454,96040.0,96032.0,0.0588]
[1736325396748,0.10415454,96040.0,96033.0,0.052078]
[1736325397540,0.10415454,96040.0,96034.0,0.052077]
[1736325398248,0.10415454,96050.0,96040.0,0.052074]
[1736325400941,0.10415454,96050.0,96041.0,0.052074]
[1736325404853,0.10415454,96050.0,96041.0,0.053074]
[1736325405950,0.10415454,96050.0,96041.0,0.001]
[1736325406155,0.51702254,96051.0,96042.0,0.052073]
[1736325407047,0.3608,96051.0,96042.0,0.052073]
[1736325407854,0.3608,96051.0,96043.0,0.052072]
[1736325408154,0.16410135,96058.0,96044.0,0.0556]
[1736325408353,0.052065,96058.0,96044.0,0.0556]
[1736325408549,0.052065,96058.0,96047.0,0.05207]
[1736325409248,0.11203635,96057.0,96047.0,0.05207]
[1736325409646,0.11203635,96057.0,96048.0,0.052069]
[1736325409958,0.11203635,96056.0,96048.0,0.052069]
[1736325410959,0.11203635,96055.0,96048.0,0.052069]
[1736325411254,0.11203635,96055.0,96049.0,0.052069]
[1736325411844,0.11203635,96054.0,96049.0,0.052069]
[1736325412057,0.11203635,96054.0,96053.0,0.3608]
[1736325412856,0.11203635,96054.0,96053.0,0.4169]
[1736325413058,0.1,96060.0,96053.0,0.4169]
[1736325413554,0.1,96060.0,96057.0,0.052064]
[1736325414154,0.11203635,96059.0,96057.0,0.052064]
[1736325415048,0.1,96060.0,96057.0,0.052064]
[1736325415449,0.1,96060.0,96057.0,0.054064]
[1736325416360,0.1,96060.0,96057.0,0.053064]
[1736325416853,0.11203635,96059.0,96057.0,0.053064]
[1736325417260,0.11203635,96059.0,96057.0,0.06680426]
[1736325417950,0.1,96060.0,96057.0,0.06680426]
[1736325418152,0.1,96060.0,96059.0,0.052064]
[1736325419462,0.052053,96079.0,96064.0,0.052061]
[1736325419861,0.052053,96079.0,96065.0,0.1189]
[1736325420663,0.052053,96079.0,96066.0,0.05206]
[1736325421671,0.052053,96079.0,96067.0,0.052059]
[1736325423257,0.20415454,96080.0,96065.0,0.1189]
[1736325423554,0.1,96080.0,96070.0,0.052057]
[1736325424150,0.1,96080.0,96070.0,0.10415454]
[1736325424360,0.1,96080.0,96079.0,0.052053]
[1736325425264,0.21203635,96080.0,96079.0,0.412853]
[1736325425964,0.1,96080.0,96079.0,0.412853]
[1736325427558,0.3608,96098.0,96079.0,0.3608]
[1736325427756,0.3608,96098.0,96088.0,0.3608]
[1736325429067,0.11203635,96097.0,96088.0,0.3608]
[1736325430063,0.3608,96098.0,96088.0,0.3608]
[1736325430670,0.3608,96098.0,96080.0,0.51700654]
[1736325430867,0.3608,96098.0,96080.0,0.3608]
[1736325430868,0.3608,96089.0,96080.0,0.3608]
[1736325431058,0.052049,96086.0,96080.0,0.3608]
[1736325431259,0.0566,96085.0,96080.0,0.3608]
[1736325431655,0.0566,96085.0,96080.0,0.37449683]
[1736325431968,0.05205,96084.0,96080.0,0.37449683]
[1736325432871,0.0566,96085.0,96080.0,0.37449683]
[1736325433665,0.60056001,96100.0,96080.0,0.37449683]
[1736325433868,0.22207835,96099.0,96080.0,0.47865137]
[1736325434064,0.22207835,96099.0,96083.0,0.052051]
[1736325434369,0.412843,96098.0,96083.0,0.052051]
[1736325435773,0.3608,96098.0,96083.0,0.052051]
[1736325435973,0.052045,96095.0,96083.0,0.052051]
[1736325436276,0.47896001,96098.0,96083.0,0.052051]
[1736325436458,0.052045,96094.0,96083.0,0.052051]
[1736325436863,0.052046,96093.0,96083.0,0.052051]
[1736325438372,0.15620054,96093.0,96083.0,0.052051]
[1736325438574,0.05205,96085.0,96080.0,0.01369683]
[1736325438774,0.3608,96081.0,96060.0,0.3608]
[1736325438975,0.3608,96072.0,96060.0,0.37754929]
[1736325439174,0.26735454,96080.0,96060.0,0.37754929]
[1736325439689,0.052055,96075.0,96064.0,0.052061]
[1736325439868,0.052061,96065.0,96060.0,0.37754929]
[1736325440977,0.052061,96065.0,96060.0,0.37954929]
[1736325441468,0.10415454,96070.0,96060.0,0.37954929]
[1736325441669,0.15621254,96070.0,96060.0,0.37954929]
[1736325441869,0.052059,96068.0,96060.0,0.37954929]
[1736325446383,0.052062,96064.0,96060.0,0.37954929]
[1736325446583,0.057,96063.0,96060.0,0.37954929]
[1736325447379,0.1117,96063.0,96060.0,0.37954929]
[1736325448381,0.1117,96063.0,96060.0,0.37754929]
[1736325448581,0.1117,96063.0,96060.0,0.37954929]
[1736325449779,0.1117,96063.0,96061.0,0.3608]
[1736325451079,0.1117,96063.0,96061.0,0.3628]
[1736325451686,0.052062,96062.0,96061.0,0.002]
[1736325451983,0.109762,96062.0,96061.0,0.002]
[1736325453977,0.109762,96062.0,96059.0,0.01847374]
[1736325453978,0.052063,96060.0,96059.0,0.01847374]
[1736325455080,0.052063,96060.0,96059.0,0.02147374]
[1736325456288,0.052063,96060.0,96059.0,0.01991228]
[1736325459387,0.052063,96060.0,96059.0,0.003]
[1736325459688,0.052068,96052.0,96050.0,0.3608]
[1736325460091,0.052068,96052.0,96050.0,0.37773662]
[1736325460895,0.052068,96052.0,96050.0,0.38173662]
[1736325463881,0.3608,96051.0,96050.0,0.004]
[1736325464081,0.3608,96051.0,96045.0,0.01700904]
[1736325464280,0.3608,96051.0,96031.0,0.3608]
[1736325464489,0.10415454,96041.0,96031.0,0.3608]
[1736325464686,0.052078,96034.0,96031.0,0.3608]
[1736325465481,0.052078,96033.0,96031.0,0.3608]
[1736325465894,0.052078,96033.0,96031.0,0.37772674]
[1736325466591,0.1081,96032.0,96031.0,0.37772674]
[1736325467095,0.1081,96032.0,96031.0,0.38172674]
[1736325469892,0.1081,96032.0,96031.0,0.37772674]
[1736325471388,0.1081,96032.0,96031.0,0.01692674]
[1736325471589,0.1081,96032.0,96027.0,0.00156191]
[1736325471894,0.052079,96031.0,96027.0,0.00156191]
[1736325473081,0.1081,96032.0,96027.0,0.00256191]
[1736325473289,0.05208,96029.0,96027.0,0.01802559]
[1736325473788,0.05208,96029.0,96027.0,0.01702559]
[1736325473994,0.05208,96029.0,96027.0,0.01802559]
[1736325474397,0.0569,96040.0,96027.0,0.01802559]
[1736325474398,0.052076,96037.0,96027.0,0.01802559]
[1736325474592,0.052077,96036.0,96027.0,0.01802559]
[1736325475394,0.052077,96035.0,96027.0,0.01802559]
[1736325475793,0.0569,96040.0,96027.0,0.01702559]
[1736325476095,0.46551455,96041.0,96028.0,0.3608]
[1736325476293,0.10415454,96041.0,96033.0,0.052078]
[1736325476495,0.10415454,96041.0,96034.0,0.0538]
[1736325476694,0.10415454,96044.0,96038.0,0.052075]
[1736325479288,0.10415454,96044.0,96039.0,0.052075]
[1736325480892,0.10415454,96044.0,96039.0,0.053075]
[1736325481498,0.10415454,96044.0,96039.0,0.001]
[1736325481699,0.10415454,96044.0,96043.0,0.052073]
[1736325481894,0.3608,96051.0,96043.0,0.052073]
[1736325483696,0.3608,96051.0,96043.0,0.053073]
[1736325484195,0.3608,96051.0,96043.0,0.06885918]
[1736325484710,0.3608,96051.0,96043.0,0.01678618]
[1736325484903,0.052072,96044.0,96043.0,0.001]
[1736325485694,0.052072,96044.0,96029.0,0.05208]
[1736325485695,0.3608,96049.0,96029.0,0.01546788]
[1736325485894,0.3608,96049.0,96021.0,0.052084]
[1736325485895,0.052078,96033.0,96021.0,0.052084]
[1736325487512,0.41288,96029.0,96027.0,0.01672351]
[1736325487696,0.41288,96029.0,96027.0,0.00156191]
[1736325488905,0.41288,96029.0,96027.0,0.00256191]
[1736325489509,0.05208,96029.0,96027.0,0.00156191]
[1736325489903,0.05208,96029.0,96027.0,0.01721731]
[1736325490210,0.052077,96035.0,96027.0,0.01721731]
[1736325490411,0.052078,96034.0,96027.0,0.01721731]
[1736325490795,0.0569,96036.0,96027.0,0.01721731]
[1736325492512,0.0569,96036.0,96027.0,0.0166554]
[1736325493403,0.0569,96036.0,96027.0,0.0176554]
[1736325495114,0.0569,96036.0,96027.0,0.0156554]
[1736325495409,0.0569,96036.0,96027.0,0.001]
[1736325496109,0.0569,96036.0,96019.0,0.412885]
[1736325496311,0.10415454,96030.0,96027.0,0.002]
[1736325496508,0.0569,96036.0,96027.0,0.002]
[1736325496905,0.3608,96037.0,96029.0,0.3608]
[1736325497108,0.3608,96037.0,96033.0,0.052078]
[1736325498309,0.11204169,96036.0,96030.0,0.0581]
[1736325499108,0.052079,96032.0,96029.0,0.3608]
[1736325499914,0.052079,96032.0,96019.0,0.42766253]
[1736325500215,0.11204169,96035.0,96019.0,0.37557753]
[1736325500519,0.11204169,96036.0,96029.0,0.3608]
[1736325500717,0.16411869,96036.0,96029.0,0.3608]
[1736325501218,0.052077,96036.0,96021.0,0.052084]
[1736325501618,0.052077,96036.0,96029.0,0.001]
[1736325501809,0.052077,96036.0,96029.0,0.3618]
[1736325502314,0.052077,96036.0,96030.0,0.0566]
[1736325503613,0.052077,96036.0,96030.0,0.0576]
[1736325505921,0.052077,96036.0,96030.0,0.07236279]
[1736325507114,0.052077,96035.0,96030.0,0.07236279]
[1736325507422,0.052077,96035.0,96030.0,0.01576279]
[1736325507916,0.052077,96035.0,96030.0,0.01476279]
[1736325508124,0.052077,96035.0,96030.0,0.001]
[1736325509315,0.052077,96035.0,96024.0,0.07052489]
[1736325509618,0.052077,96035.0,96030.0,0.001]
[1736325511521,0.11204169,96034.0,96030.0,0.001]
[1736325512322,0.052077,96035.0,96030.0,0.001]
[1736325515914,0.052077,96035.0,96027.0,0.3608]
[1736325516224,0.052077,96035.0,96030.0,0.001]
[1736325519424,0.052077,96035.0,96027.0,0.3608]
[1736325519616,0.052077,96035.0,96030.0,0.001]
[1736325520824,0.11204169,96034.0,96030.0,0.001]
[1736325521326,0.11204169,96034.0,96029.0,0.05208]
[1736325521524,0.11204169,96034.0,96030.0,0.001]
[1736325521717,0.11204169,96033.0,96030.0,0.001]
[1736325522729,0.11204169,96033.0,96031.0,0.052079]
[1736325522929,0.11204169,96040.0,96036.0,0.052076]
[1736325523635,0.052067,96054.0,96041.0,0.052073]
[1736325523933,0.052067,96054.0,96042.0,0.052073]
[1736325524734,0.11204169,96047.0,96042.0,0.052073]
[1736325525529,0.052067,96054.0,96042.0,0.052073]
[1736325525730,0.053067,96054.0,96042.0,0.052073]
[1736325525929,0.10415454,96052.0,96042.0,0.052073]
[1736325526128,0.052069,96050.0,96038.0,0.3608]
[1736325526527,0.052069,96049.0,96042.0,0.002]
[1736325527329,0.46559454,96052.0,96042.0,0.002]
[1736325527532,0.46495454,96052.0,96042.0,0.002]
[1736325527834,0.052071,96046.0,96042.0,0.002]
[1736325528234,0.052072,96044.0,96038.0,0.002]
[1736325528434,0.057,96043.0,96038.0,0.002]
[1736325528633,0.052073,96042.0,96038.0,0.002]
[1736325528939,0.052073,96042.0,96029.0,0.05208]
[1736325529132,0.10415454,96040.0,96022.0,0.052083]
[1736325529349,0.052077,96035.0,96029.0,0.01421533]
[1736325529641,0.052078,96034.0,96022.0,0.052083]
[1736325531839,0.052078,96034.0,96027.0,0.37430531]
[1736325532041,0.052078,96034.0,96029.0,0.001]
[1736325532739,0.052078,96034.0,96027.0,0.37630531]
[1736325534445,0.052078,96034.0,96027.0,0.37430531]
[1736325534645,0.052078,96034.0,96029.0,0.001]
[1736325535445,0.052078,96034.0,96027.0,0.37630531]
[1736325536241,0.052078,96034.0,96029.0,0.001]
[1736325537947,0.11204169,96033.0,96027.0,0.37630531]
[1736325538634,0.11204169,96033.0,96029.0,0.001]
[1736325539046,0.11204169,96032.0,96029.0,0.001]
[1736325539549,0.11204169,96032.0,96027.0,0.37530531]
[1736325540252,0.052078,96034.0,96027.0,0.37530531]
[1736325541248,0.052078,96034.0,96029.0,0.001]
[1736325541948,0.052078,96034.0,96027.0,0.37430531]
[1736325542144,0.052078,96034.0,96027.0,0.37530531]
[1736325542849,0.052078,96034.0,96029.0,0.001]
[1736325544651,0.052078,96034.0,96027.0,0.37530531]
[1736325545454,0.052078,96034.0,96029.0,0.001]
[1736325547550,0.052078,96034.0,96027.0,0.37430531]
[1736325547750,0.052078,96034.0,96027.0,0.37530531]
[1736325548242,0.052081,96028.0,96027.0,0.37530531]
[1736325548443,0.052081,96028.0,96027.0,0.01350531]
[1736325548647,0.3608,96035.0,96011.0,0.0539]
[1736325548846,0.052084,96022.0,96011.0,0.0539]
[1736325549046,0.052085,96021.0,96011.0,0.0539]
[1736325549448,0.0545,96027.0,96011.0,0.0539]
[1736325549449,0.3608,96026.0,96011.0,0.0539]
[1736325549648,0.052085,96020.0,96011.0,0.0539]
[1736325550942,0.052085,96020.0,96018.0,0.3745197]
[1736325551141,0.052085,96020.0,96018.0,0.3765197]
[1736325555847,0.3608,96026.0,96018.0,0.3765197]
[1736325555848,0.412882,96026.0,96018.0,0.3765197]
[1736325556152,0.052082,96026.0,96018.0,0.3765197]
[1736325556956,0.0545,96027.0,96018.0,0.3765197]
[1736325557159,0.11204169,96034.0,96018.0,0.3765197]
[1736325557359,0.11204169,96034.0,96028.0,0.052081]
[1736325557556,0.10422471,96040.0,96029.0,0.054]
[1736325557856,0.0587,96044.0,96029.0,0.054]
[1736325558062,0.11204169,96048.0,96039.0,0.3608]
[1736325558358,0.3608,96054.0,96039.0,0.3608]
[1736325558555,0.10422471,96050.0,96039.0,0.3608]
[1736325558756,0.10422471,96050.0,96044.0,0.052072]
[1736325559952,0.10422471,96050.0,96040.0,0.0595]
[1736325560961,0.10422471,96050.0,96040.0,0.07228201]
[1736325562760,0.10422471,96050.0,96044.0,0.002]
[1736325563860,0.05207,96048.0,96044.0,0.002]
[1736325564772,0.05207,96048.0,96040.0,0.01578201]
[1736325564965,0.05207,96048.0,96040.0,0.003]
[1736325565568,0.05207,96048.0,96044.0,0.001]
[1736325566465,0.05207,96048.0,96040.0,0.002]
[1736325568058,0.052071,96047.0,96040.0,0.002]
[1736325568360,0.052071,96047.0,96044.0,0.001]
[1736325569167,0.052071,96047.0,96040.0,0.001]
[1736325569870,0.052071,96047.0,96032.0,0.052078]
[1736325570066,0.052071,96047.0,96044.0,0.001]
[1736325572065,0.36144,96054.0,96039.0,0.3608]
[1736325572271,0.3608,96054.0,96040.0,0.001]
[1736325572470,0.3608,96054.0,96040.0,0.057]
[1736325572865,0.3608,96054.0,96042.0,0.052073]
[1736325573071,0.11203299,96053.0,96044.0,0.001]
[1736325573472,0.11203299,96053.0,96045.0,0.0559]
[1736325573872,0.11203299,96052.0,96045.0,0.0559]
[1736325574780,0.052067,96053.0,96045.0,0.0559]
[1736325575871,0.052067,96053.0,96045.0,0.0579]
[1736325576974,0.052067,96053.0,96045.0,0.07110276]
[1736325579683,0.052069,96051.0,96045.0,0.07110276]
[1736325581884,0.052069,96051.0,96045.0,0.07010276]
[1736325582685,0.052069,96051.0,96045.0,0.07110276]
[1736325583374,0.052069,96051.0,96045.0,0.06910276]
[1736325583578,0.052069,96051.0,96045.0,0.07110276]
[1736325584285,0.052069,96050.0,96045.0,0.01520276]
[1736325584780,0.3608,96054.0,96045.0,0.01520276]
[1736325584981,0.05207,96049.0,96045.0,0.01520276]
[1736325585490,0.05207,96049.0,96045.0,0.01320276]
[1736325585789,0.05207,96049.0,96045.0,0.001]